[Event "Late-Titled-Tuesday-Blitz-January-16-2024"]
[Site "Chess.com"]
[Date "2024.01.16"]
[Round "11"]
[White "Fandorine"]
[Black "iturrizaga"]
[Result "0-1"]
[WhiteElo "2971"]
[BlackElo "3027"]
[TimeControl "180+1"]
[EndTime "16:08:39 PST"]
[Termination "iturrizaga won by resignation"]

1. c4 {[%clk 0:03:00.8]} 1... Nf6 {[%clk 0:02:58]} 2. g3 {[%clk 0:03:00]} 2...
c6 {[%clk 0:02:56]} 3. Bg2 {[%clk 0:02:59.1]} 3... d5 {[%clk 0:02:56.6]} 4. Nf3
{[%clk 0:02:58.8]} 4... g6 {[%clk 0:02:54.1]} 5. O-O {[%clk 0:02:57.7]} 5...
dxc4 {[%clk 0:02:54.2]} 6. a4 {[%clk 0:02:51.9]} 6... Bg7 {[%clk 0:02:53.8]} 7.
Na3 {[%clk 0:02:52]} 7... O-O {[%clk 0:02:49.9]} 8. Nxc4 {[%clk 0:02:51.6]} 8...
Be6 {[%clk 0:02:44.2]} 9. Qc2 {[%clk 0:02:48.8]} 9... Nbd7 {[%clk 0:02:40.7]}
10. d3 {[%clk 0:02:44]} 10... h6 {[%clk 0:02:15.7]} 11. Bd2 {[%clk 0:02:38.3]}
11... Rc8 {[%clk 0:02:14.5]} 12. Rab1 {[%clk 0:02:35.6]} 12... c5 {[%clk
0:02:07.3]} 13. Bc3 {[%clk 0:02:19]} 13... Nd5 {[%clk 0:02:02.2]} 14. a5 {[%clk
0:02:06.2]} 14... Nb4 {[%clk 0:01:50.9]} 15. Qa4 {[%clk 0:02:04.4]} 15... Nc6
{[%clk 0:01:39.8]} 16. Rfc1 {[%clk 0:01:56.6]} 16... Nf6 {[%clk 0:01:25.8]} 17.
Qb5 {[%clk 0:01:44.1]} 17... Bd5 {[%clk 0:01:24.4]} 18. Ne3 {[%clk 0:01:38.3]}
18... Be6 {[%clk 0:00:48]} 19. Qxb7 {[%clk 0:01:25.3]} 19... Nxa5 {[%clk
0:00:47.3]} 20. Qa6 {[%clk 0:01:11.8]} 20... Nb3 {[%clk 0:00:46.5]} 21. Rd1
{[%clk 0:01:12.2]} 21... Qb6 {[%clk 0:00:46.4]} 22. Qa4 {[%clk 0:01:02]} 22...
Rfd8 {[%clk 0:00:42.5]} 23. Nc4 {[%clk 0:00:44.7]} 23... Qb8 {[%clk 0:00:42.7]}
24. Nfe5 {[%clk 0:00:39.6]} 24... Nd4 {[%clk 0:00:23.3]} 25. Bxd4 {[%clk
0:00:37.3]} 25... cxd4 {[%clk 0:00:23.9]} 26. Nc6 {[%clk 0:00:36.5]} 26... Bd7
{[%clk 0:00:23.9]} 27. Nxe7+ {[%clk 0:00:29.4]} 27... Kh7 {[%clk 0:00:24.3]} 28.
Qa6 {[%clk 0:00:12.4]} 28... Rc7 {[%clk 0:00:23.6]} 29. Nc6 {[%clk 0:00:12.2]}
29... Bxc6 {[%clk 0:00:23.3]} 30. Bxc6 {[%clk 0:00:13.1]} 30... h5 {[%clk
0:00:15.6]} 31. Bf3 {[%clk 0:00:13.5]} 31... h4 {[%clk 0:00:16]} 32. b4 {[%clk
0:00:12.8]} 32... Re7 {[%clk 0:00:14.6]} 33. Qa5 {[%clk 0:00:10.6]} 33... Qc8
{[%clk 0:00:13.8]} 34. Qg5 {[%clk 0:00:10.8]} 34... hxg3 {[%clk 0:00:13]} 35.
hxg3 {[%clk 0:00:11.4]} 35... Rh8 {[%clk 0:00:13.4]} 36. Kg2 {[%clk 0:00:11]}
36... Kg8 {[%clk 0:00:13.8]} 37. Rh1 {[%clk 0:00:11.5]} 37... Rxh1 {[%clk
0:00:13.9]} 38. Rxh1 {[%clk 0:00:12.1]} 38... Qe8 {[%clk 0:00:11.6]} 39. Qc5
{[%clk 0:00:08.9]} 39... Rd7 {[%clk 0:00:08.7]} 40. Bc6 {[%clk 0:00:06]} 40...
Qxe2 {[%clk 0:00:08]} 41. Bxd7 {[%clk 0:00:06.5]} 41... Nxd7 {[%clk 0:00:08.7]}
42. Qc8+ {[%clk 0:00:06.6]} 42... Nf8 {[%clk 0:00:09.2]} 43. Qc6 {[%clk
0:00:04]} 43... Qxd3 {[%clk 0:00:09]} 44. Nd6 {[%clk 0:00:04.7]} 44... Be5
{[%clk 0:00:06]} 45. Ne4 {[%clk 0:00:03.4]} 45... Kg7 {[%clk 0:00:04.2]} 46. Ng5
{[%clk 0:00:03.6]} 46... Qf5 {[%clk 0:00:03.6]} 47. Nf3 {[%clk 0:00:03.6]} 47...
Bf6 {[%clk 0:00:03.8]} 48. Qc5 {[%clk 0:00:03.4]} 48... Qe4 {[%clk 0:00:03.6]}
49. Re1 {[%clk 0:00:02.6]} 49... Qb7 {[%clk 0:00:03.9]} 50. b5 {[%clk 0:00:03]}
50... Ne6 {[%clk 0:00:04.1]} 51. Qc6 {[%clk 0:00:03.6]} 51... Qb8 {[%clk
0:00:04.7]} 52. Nd2 {[%clk 0:00:02.4]} 52... Qh8 {[%clk 0:00:04.9]} 53. Ne4
{[%clk 0:00:02.3]} 53... Be5 {[%clk 0:00:05.1]} 54. Qd5 {[%clk 0:00:02.7]} 54...
Kg8 {[%clk 0:00:04.7]} 55. Rh1 {[%clk 0:00:03.2]} 55... Qg7 {[%clk 0:00:05]} 56.
Qa8+ {[%clk 0:00:03.8]} 56... Nf8 {[%clk 0:00:05]} 57. Qxa7 {[%clk 0:00:03.5]}
57... g5 {[%clk 0:00:05.4]} 58. Qb7 {[%clk 0:00:03.5]} 58... Qg6 {[%clk
0:00:06.1]} 59. Qd5 {[%clk 0:00:04]} 59... Qf5 {[%clk 0:00:06.3]} 60. Re1 {[%clk
0:00:02.7]} 60... Ng6 {[%clk 0:00:06.6]} 61. Nd6 {[%clk 0:00:02.4]} 61... Qf6
{[%clk 0:00:06.1]} 62. Ne4 {[%clk 0:00:02.4]} 62... Qf5 {[%clk 0:00:06.6]} 63.
b6 {[%clk 0:00:03]} 63... Qg4 {[%clk 0:00:06.7]} 64. Kf1 {[%clk 0:00:02.4]}
64... Qh3+ {[%clk 0:00:06.6]} 65. Ke2 {[%clk 0:00:02.9]} 65... Qc8 {[%clk
0:00:04]} 66. Kd1 {[%clk 0:00:01.8]} 66... Qa6 {[%clk 0:00:03.5]} 67. Qb3 {[%clk
0:00:01.7]} 67... d3 {[%clk 0:00:02.6]} 68. b7 {[%clk 0:00:02.2]} 68... Bb8
{[%clk 0:00:02.5]} 69. Nd2 {[%clk 0:00:02.7]} 69... Ne5 {[%clk 0:00:02.9]} 70.
Rxe5 {[%clk 0:00:02.5]} 70... Qa1+ {[%clk 0:00:03.2]} 71. Qb1 {[%clk 0:00:02.2]}
71... Qxe5 {[%clk 0:00:04.1]} 72. Qxd3 {[%clk 0:00:02.9]} 72... Qa1+ {[%clk
0:00:04.4]} 73. Ke2 {[%clk 0:00:03.5]} 73... Qe5+ {[%clk 0:00:05.3]} 74. Qe4
{[%clk 0:00:04]} 74... Qb5+ {[%clk 0:00:05.6]} 75. Ke1 {[%clk 0:00:03.6]} 75...
Kg7 {[%clk 0:00:06.2]} 76. Nc4 {[%clk 0:00:03.6]} 76... Qb4+ {[%clk 0:00:06.3]}
77. Kf1 {[%clk 0:00:03.9]} 77... Qb5 {[%clk 0:00:05.7]} 78. Kg2 {[%clk 0:00:04]}
78... f5 {[%clk 0:00:05.9]} 79. Qe7+ {[%clk 0:00:04.2]} 79... Kh6 {[%clk
0:00:05.6]} 80. Ne3 {[%clk 0:00:04.3]} 80... Qc6+ {[%clk 0:00:05.3]} 81. Kg1
{[%clk 0:00:03.6]} 81... f4 {[%clk 0:00:05.4]} 82. Nf5+ {[%clk 0:00:03.1]} 82...
Kh5 {[%clk 0:00:06]} 83. Ng7+ {[%clk 0:00:02.2]} 83... Kg4 {[%clk 0:00:06.3]}
84. Ne6 {[%clk 0:00:02.5]} 84... Qc1+ {[%clk 0:00:06.1]} 85. Kg2 {[%clk
0:00:02.1]} 85... f3+ {[%clk 0:00:07]} 86. Kh2 {[%clk 0:00:02.6]} 86... Bxg3+
{[%clk 0:00:07.6]} 0-1